[Event "*** SCC Grand Prix: Titled Tuesday Blitz"]
[Site "Chess.com"]
[Date "2020.07.21"]
[Round "7"]
[White "Giraffe_Chess"]
[Black "KaspMagAlpha"]
[Result "0-1"]
[WhiteElo "2376"]
[BlackElo "2234"]
[TimeControl "180+1"]
[EndTime "11:22:19 PDT"]
[Termination "KaspMagAlpha won on time"]

1. d4 {[%clk 0:03:00.9]} 1... Nf6 {[%clk 0:02:59.5]} 2. c4 {[%clk 0:02:52.8]}
2... e6 {[%clk 0:02:58.4]} 3. Nf3 {[%clk 0:02:52.6]} 3... Bb4+ {[%clk
0:02:57.7]} 4. Nc3 {[%clk 0:02:52]} 4... O-O {[%clk 0:02:57]} 5. g3 {[%clk
0:02:52.2]} 5... c5 {[%clk 0:02:56.5]} 6. Bg2 {[%clk 0:02:50.9]} 6... cxd4
{[%clk 0:02:56.1]} 7. Nxd4 {[%clk 0:02:51.8]} 7... a6 {[%clk 0:02:56.4]} 8. O-O
{[%clk 0:02:51.2]} 8... Nc6 {[%clk 0:02:55.6]} 9. Nc2 {[%clk 0:02:44.8]} 9...
Be7 {[%clk 0:02:54.7]} 10. e4 {[%clk 0:02:43.9]} 10... d6 {[%clk 0:02:54.1]} 11.
h3 {[%clk 0:02:42.4]} 11... Ne5 {[%clk 0:02:53.7]} 12. b3 {[%clk 0:02:41]} 12...
Qc7 {[%clk 0:02:53.7]} 13. Bb2 {[%clk 0:02:39]} 13... Bd7 {[%clk 0:02:52.5]} 14.
f4 {[%clk 0:02:37.7]} 14... Ng6 {[%clk 0:02:52.4]} 15. Qd2 {[%clk 0:02:35.7]}
15... Bc6 {[%clk 0:02:52.1]} 16. Rad1 {[%clk 0:02:33.8]} 16... Rad8 {[%clk
0:02:51.4]} 17. Kh2 {[%clk 0:02:32.3]} 17... Rd7 {[%clk 0:02:42.3]} 18. Nd4
{[%clk 0:02:31.7]} 18... Rfd8 {[%clk 0:02:41.3]} 19. Rc1 {[%clk 0:02:31.3]}
19... Qb8 {[%clk 0:02:39.2]} 20. a4 {[%clk 0:02:27.3]} 20... Bf8 {[%clk
0:02:22.8]} 21. Qe3 {[%clk 0:02:23.4]} 21... h6 {[%clk 0:02:11.8]} 22. Rfd1
{[%clk 0:02:22.6]} 22... Qa7 {[%clk 0:02:04.5]} 23. Rd3 {[%clk 0:02:03.1]} 23...
Qb6 {[%clk 0:01:56.2]} 24. Rcd1 {[%clk 0:01:54.6]} 24... Ne8 {[%clk 0:01:41.2]}
25. Ba3 {[%clk 0:01:51.4]} 25... Ne7 {[%clk 0:01:32.5]} 26. R1d2 {[%clk
0:01:49.1]} 26... Qc7 {[%clk 0:01:30.5]} 27. b4 {[%clk 0:01:30.9]} 27... b6
{[%clk 0:01:09.2]} 28. Qe2 {[%clk 0:00:55.5]} 28... Ba8 {[%clk 0:01:06.9]} 29.
Re3 {[%clk 0:00:42.8]} 29... Rc8 {[%clk 0:01:05.9]} 30. Bf1 {[%clk 0:00:42.8]}
30... Nc6 {[%clk 0:00:41.4]} 31. Nxc6 {[%clk 0:00:41.1]} 31... Qxc6 {[%clk
0:00:39.3]} 32. b5 {[%clk 0:00:28.8]} 32... Qb7 {[%clk 0:00:33.7]} 33. bxa6
{[%clk 0:00:20.1]} 33... Qxa6 {[%clk 0:00:33.2]} 34. Qd1 {[%clk 0:00:20.2]}
34... Qb7 {[%clk 0:00:12.9]} 35. Nb5 {[%clk 0:00:20.4]} 35... Qc6 {[%clk
0:00:06.4]} 36. Bb2 {[%clk 0:00:14.7]} 36... Bb7 {[%clk 0:00:06.4]} 37. Qb3
{[%clk 0:00:13.8]} 37... Ba6 {[%clk 0:00:06.5]} 38. Qc3 {[%clk 0:00:13.1]} 38...
Bxb5 {[%clk 0:00:06.8]} 39. axb5 {[%clk 0:00:14]} 39... Qb7 {[%clk 0:00:06.4]}
40. Qd3 {[%clk 0:00:12.9]} 40... Rdc7 {[%clk 0:00:06.4]} 41. Qd4 {[%clk
0:00:12.7]} 41... Rc5 {[%clk 0:00:06.2]} 42. Ba3 {[%clk 0:00:11.4]} 42... R5c7
{[%clk 0:00:06]} 43. Bb4 {[%clk 0:00:10.5]} 43... Rd7 {[%clk 0:00:06.2]} 44. Ra3
{[%clk 0:00:10.2]} 44... Rcd8 {[%clk 0:00:06.6]} 45. Rda2 {[%clk 0:00:09.7]}
45... Qc8 {[%clk 0:00:06.8]} 46. Bd3 {[%clk 0:00:07.6]} 46... Rc7 {[%clk
0:00:06.5]} 47. Qe3 {[%clk 0:00:07.3]} 47... Qd7 {[%clk 0:00:06.8]} 48. Rd2
{[%clk 0:00:06.6]} 48... d5 {[%clk 0:00:07.1]} 49. exd5 {[%clk 0:00:05.6]} 49...
Bxb4 {[%clk 0:00:06.6]} 50. Raa2 {[%clk 0:00:04.4]} 50... Bxd2 {[%clk
0:00:06.2]} 51. Rxd2 {[%clk 0:00:05.3]} 51... exd5 {[%clk 0:00:06.5]} 52. cxd5
{[%clk 0:00:06.2]} 52... Qe7 {[%clk 0:00:07]} 53. Qd4 {[%clk 0:00:05.7]} 53...
Qd6 {[%clk 0:00:06.9]} 54. Qe4 {[%clk 0:00:05.5]} 54... Rcd7 {[%clk 0:00:07.4]}
55. Re2 {[%clk 0:00:05.6]} 55... Nf6 {[%clk 0:00:08.3]} 56. Qf5 {[%clk
0:00:05.4]} 56... Re7 {[%clk 0:00:08.2]} 57. Rd2 {[%clk 0:00:04.6]} 57... Qxd5
{[%clk 0:00:07.9]} 58. Qxd5 {[%clk 0:00:02.6]} 58... Rxd5 {[%clk 0:00:07.6]} 59.
Rc2 {[%clk 0:00:03.5]} 59... Re8 {[%clk 0:00:07.3]} 60. Rc6 {[%clk 0:00:04.4]}
60... Rdd8 {[%clk 0:00:07.5]} 61. h4 {[%clk 0:00:04.7]} 61... Re3 {[%clk
0:00:07.7]} 62. Bf5 {[%clk 0:00:05.2]} 62... Ng4+ {[%clk 0:00:08.5]} 63. Bxg4
{[%clk 0:00:05]} 63... f5 {[%clk 0:00:08]} 64. Bxf5 {[%clk 0:00:05]} 64... Kf8
{[%clk 0:00:08.9]} 65. Bg6 {[%clk 0:00:05.2]} 65... Rd2+ {[%clk 0:00:09.1]} 66.
Kh3 {[%clk 0:00:05]} 66... Rd8 {[%clk 0:00:05.3]} 67. Rxb6 {[%clk 0:00:03.6]}
67... Rb3 {[%clk 0:00:05.2]} 68. Rc6 {[%clk 0:00:03.6]} 68... Kg8 {[%clk
0:00:05.2]} 69. Re6 {[%clk 0:00:04.1]} 69... Rxb5 {[%clk 0:00:03.9]} 70. Re8+
{[%clk 0:00:04.5]} 70... Rxe8 {[%clk 0:00:03.4]} 71. Bxe8 {[%clk 0:00:05.4]}
71... Rb4 {[%clk 0:00:03.8]} 72. Bd7 {[%clk 0:00:05.6]} 72... Kf8 {[%clk
0:00:04.7]} 73. Be6 {[%clk 0:00:06.2]} 73... Ke7 {[%clk 0:00:05.6]} 74. f5
{[%clk 0:00:07]} 74... Kf6 {[%clk 0:00:05.9]} 75. g4 {[%clk 0:00:07.2]} 75... g6
{[%clk 0:00:06]} 76. Bd7 {[%clk 0:00:06.5]} 76... gxf5 {[%clk 0:00:06.1]} 77.
Bxf5 {[%clk 0:00:07.4]} 77... h5 {[%clk 0:00:05.9]} 78. Kg3 {[%clk 0:00:07.4]}
78... hxg4 {[%clk 0:00:05.9]} 79. Bxg4 {[%clk 0:00:08.3]} 79... Rb3+ {[%clk
0:00:05.3]} 80. Kf4 {[%clk 0:00:08.3]} 80... Rb4+ {[%clk 0:00:04.1]} 81. Kg3
{[%clk 0:00:09.2]} 81... Rc4 {[%clk 0:00:04.3]} 82. Bf3 {[%clk 0:00:09.5]} 82...
Rd4 {[%clk 0:00:05.2]} 83. h5 {[%clk 0:00:08.6]} 83... Kg5 {[%clk 0:00:05.3]}
84. Kf2 {[%clk 0:00:09.5]} 84... Rd3 {[%clk 0:00:04.8]} 85. Be2 {[%clk
0:00:09.4]} 85... Rc3 {[%clk 0:00:05.7]} 86. Ke1 {[%clk 0:00:09.6]} 86... Ra3
{[%clk 0:00:05.6]} 87. Kd2 {[%clk 0:00:10.5]} 87... Ra5 {[%clk 0:00:05.9]} 88.
Bd1 {[%clk 0:00:11.4]} 88... Kh6 {[%clk 0:00:05.8]} 89. Kc2 {[%clk 0:00:12.3]}
89... Rc5+ {[%clk 0:00:05.7]} 90. Kd3 {[%clk 0:00:12.3]} 90... Rg5 {[%clk
0:00:06.6]} 91. Ke3 {[%clk 0:00:12.3]} 91... Rg1 {[%clk 0:00:07.5]} 92. Be2
{[%clk 0:00:12.2]} 92... Rh1 {[%clk 0:00:07.7]} 93. Bf3 {[%clk 0:00:12.2]} 93...
Rh3 {[%clk 0:00:08]} 94. Kf4 {[%clk 0:00:12.3]} 94... Rh2 {[%clk 0:00:08.9]} 95.
Kg3 {[%clk 0:00:12.5]} 95... Rb2 {[%clk 0:00:09.8]} 96. Kf4 {[%clk 0:00:12.4]}
96... Rb8 {[%clk 0:00:10.7]} 97. Ke4 {[%clk 0:00:12.7]} 97... Rd8 {[%clk
0:00:11.6]} 98. Kf4 {[%clk 0:00:13.2]} 98... Rf8+ {[%clk 0:00:12.5]} 99. Kg3
{[%clk 0:00:13.6]} 99... Rg8+ {[%clk 0:00:12.9]} 100. Kf4 {[%clk 0:00:13.9]}
100... Rd8 {[%clk 0:00:13.8]} 101. Kg3 {[%clk 0:00:14.3]} 101... Rd2 {[%clk
0:00:14.1]} 102. Kf4 {[%clk 0:00:14.7]} 102... Rb2 {[%clk 0:00:15]} 103. Ke3
{[%clk 0:00:15.1]} 103... Rb4 {[%clk 0:00:15.9]} 104. Kf2 {[%clk 0:00:14.9]}
104... Kg5 {[%clk 0:00:16.2]} 105. Ke3 {[%clk 0:00:15.1]} 105... Rb3+ {[%clk
0:00:16.6]} 106. Kf2 {[%clk 0:00:14.2]} 106... Kf4 {[%clk 0:00:16.2]} 107. Be2
{[%clk 0:00:14.3]} 107... Rb2 {[%clk 0:00:16]} 108. h6 {[%clk 0:00:14.4]} 108...
Rb6 {[%clk 0:00:15.6]} 109. h7 {[%clk 0:00:14.6]} 109... Rh6 {[%clk 0:00:16.1]}
110. Bd3 {[%clk 0:00:14.7]} 110... Rh2+ {[%clk 0:00:15.9]} 111. Kg1 {[%clk
0:00:14.6]} 111... Rh6 {[%clk 0:00:15.1]} 112. Kf2 {[%clk 0:00:13.2]} 112...
Rh2+ {[%clk 0:00:14.3]} 113. Kg1 {[%clk 0:00:13.3]} 113... Rh6 {[%clk
0:00:13.8]} 114. Kg2 {[%clk 0:00:13.5]} 114... Ke3 {[%clk 0:00:13.4]} 115. Bf5
{[%clk 0:00:12.7]} 115... Kf4 {[%clk 0:00:13.5]} 116. Bb1 {[%clk 0:00:12.7]}
116... Kg5 {[%clk 0:00:12.7]} 117. Kg3 {[%clk 0:00:12.7]} 117... Kf6 {[%clk
0:00:13.1]} 118. Kg4 {[%clk 0:00:12.9]} 118... Kg7 {[%clk 0:00:14]} 119. Kg5
{[%clk 0:00:12.2]} 119... Rb6 {[%clk 0:00:14.9]} 120. Bf5 {[%clk 0:00:11.9]}
120... Rb4 {[%clk 0:00:14.8]} 121. Kh5 {[%clk 0:00:10.3]} 121... Kh8 {[%clk
0:00:15.7]} 122. Kg5 {[%clk 0:00:11.2]} 122... Rb5 {[%clk 0:00:15.8]} 123. Kf6
{[%clk 0:00:11.4]} 123... Rb6+ {[%clk 0:00:16.7]} 124. Ke5 {[%clk 0:00:11.4]}
124... Rb5+ {[%clk 0:00:16.5]} 125. Kf6 {[%clk 0:00:11.7]} 125... Ra5 {[%clk
0:00:16.8]} 126. Kg6 {[%clk 0:00:11.8]} 126... Ra6+ {[%clk 0:00:17.1]} 127. Kf7
{[%clk 0:00:11.6]} 127... Ra7+ {[%clk 0:00:16.7]} 128. Kf6 {[%clk 0:00:11.8]}
128... Ra6+ {[%clk 0:00:16.6]} 129. Kg5 {[%clk 0:00:11.8]} 129... Rd6 {[%clk
0:00:16.3]} 130. Kf4 {[%clk 0:00:11.3]} 130... Kg7 {[%clk 0:00:16.3]} 131. Ke5
{[%clk 0:00:12.2]} 131... Rb6 {[%clk 0:00:15.6]} 132. h8=Q+ {[%clk 0:00:11.8]}
132... Kxh8 {[%clk 0:00:15.2]} 133. Be6 {[%clk 0:00:11.8]} 133... Kg7 {[%clk
0:00:15.3]} 134. Bd5 {[%clk 0:00:12]} 134... Kf8 {[%clk 0:00:15.3]} 135. Kd4
{[%clk 0:00:12.3]} 135... Ke7 {[%clk 0:00:15.6]} 136. Kc5 {[%clk 0:00:13.2]}
136... Rf6 {[%clk 0:00:14.9]} 137. Bc6 {[%clk 0:00:13.1]} 137... Kd8 {[%clk
0:00:14.2]} 138. Kd5 {[%clk 0:00:11.2]} 138... Kc7 {[%clk 0:00:14.3]} 139. Bb5
{[%clk 0:00:11.4]} 139... Rf5+ {[%clk 0:00:14.4]} 140. Kc4 {[%clk 0:00:11.4]}
140... Kb6 {[%clk 0:00:14.6]} 141. Bd7 {[%clk 0:00:11.3]} 141... Rf4+ {[%clk
0:00:14.3]} 142. Kd5 {[%clk 0:00:11]} 142... Rf6 {[%clk 0:00:14.7]} 143. Ke5
{[%clk 0:00:10.5]} 143... Rh6 {[%clk 0:00:13.8]} 144. Be6 {[%clk 0:00:10.6]}
144... Kc5 {[%clk 0:00:14]} 145. Kf5 {[%clk 0:00:09.3]} 145... Kd6 {[%clk
0:00:14.1]} 146. Bb3 {[%clk 0:00:08.5]} 146... Rh5+ {[%clk 0:00:14]} 147. Kg4
{[%clk 0:00:08.4]} 147... Rb5 {[%clk 0:00:14.9]} 148. Bc2 {[%clk 0:00:07.8]}
148... Rc5 {[%clk 0:00:14.2]} 149. Bd3 {[%clk 0:00:07.4]} 149... Ke5 {[%clk
0:00:13.7]} 150. Kf3 {[%clk 0:00:06.7]} 150... Rc3 {[%clk 0:00:11.7]} 151. Ke2
{[%clk 0:00:06.6]} 151... Ra3 {[%clk 0:00:12]} 152. Kd2 {[%clk 0:00:05.9]}
152... Kd4 {[%clk 0:00:12.1]} 153. Bc2 {[%clk 0:00:06]} 153... Rh3 {[%clk
0:00:11.7]} 154. Bf5 {[%clk 0:00:03.7]} 154... Rh2+ {[%clk 0:00:11.4]} 155. Kc1
{[%clk 0:00:03.7]} 155... Kc3 {[%clk 0:00:11.1]} 156. Kb1 {[%clk 0:00:01.5]}
156... Rf2 {[%clk 0:00:09.9]} 0-1

[Event "*** SCC Grand Prix: Titled Tuesday Blitz"]
[Site "Chess.com"]
[Date "2020.07.21"]
[Round "8"]
[White "Karina_Ivanova"]
[Black "ichangedmyname_yup"]
[Result "0-1"]
[WhiteElo "2173"]
[BlackElo "2333"]
[TimeControl "180+1"]
[EndTime "11:30:30 PDT"]
[Termination "ichangedmyname_yup won by resignation"]

1. d4 {[%clk 0:02:58.5]} 1... Nf6 {[%clk 0:02:58.6]} 2. Nf3 {[%clk 0:02:55.9]}
2... e6 {[%clk 0:02:58.4]} 3. g3 {[%clk 0:02:55.3]} 3... Be7 {[%clk 0:02:58.4]}
4. Bg2 {[%clk 0:02:51.6]} 4... O-O {[%clk 0:02:58.6]} 5. c4 {[%clk 0:02:50.3]}
5... d5 {[%clk 0:02:58.4]} 6. Nbd2 {[%clk 0:02:46.1]} 6... c6 {[%clk 0:02:56.6]}
7. O-O {[%clk 0:02:43.1]} 7... b6 {[%clk 0:02:56.6]} 8. b3 {[%clk 0:02:41.5]}
8... Bb7 {[%clk 0:02:56.6]} 9. Bb2 {[%clk 0:02:40.6]} 9... Nbd7 {[%clk
0:02:56.8]} 10. Qc2 {[%clk 0:02:36.2]} 10... Rc8 {[%clk 0:02:56.5]} 11. e4
{[%clk 0:02:30.9]} 11... c5 {[%clk 0:02:56.5]} 12. exd5 {[%clk 0:02:27.2]} 12...
exd5 {[%clk 0:02:56.5]} 13. dxc5 {[%clk 0:02:24.3]} 13... Bxc5 {[%clk
0:02:51.6]} 14. Rad1 {[%clk 0:02:22.2]} 14... Qc7 {[%clk 0:02:42.4]} 15. cxd5
{[%clk 0:02:10.9]} 15... Bxf2+ {[%clk 0:02:38.8]} 16. Rxf2 {[%clk 0:02:08]}
16... Qxc2 {[%clk 0:02:38.6]} 0-1

[Event "*** SCC Grand Prix: Titled Tuesday Blitz"]
[Site "Chess.com"]
[Date "2020.07.21"]
[Round "8"]
[White "crazychessbr"]
[Black "Jojo_1608"]
[Result "1-0"]
[WhiteElo "2131"]
[BlackElo "2234"]
[TimeControl "180+1"]
[EndTime "11:30:38 PDT"]
[Termination "crazychessbr won by resignation"]

1. e4 {[%clk 0:03:00.9]} 1... c5 {[%clk 0:02:55.2]} 2. d3 {[%clk 0:03:00.1]}
2... g6 {[%clk 0:02:53.6]} 3. g3 {[%clk 0:03:00.7]} 3... Bg7 {[%clk 0:02:53.7]}
4. Bg2 {[%clk 0:03:01.4]} 4... b6 {[%clk 0:02:52]} 5. f4 {[%clk 0:03:02]} 5...
Bb7 {[%clk 0:02:51.7]} 6. Nf3 {[%clk 0:03:02.7]} 6... d6 {[%clk 0:02:51.8]} 7.
O-O {[%clk 0:03:03.3]} 7... Nd7 {[%clk 0:02:51.9]} 8. c3 {[%clk 0:03:03.4]} 8...
e6 {[%clk 0:02:49.8]} 9. Na3 {[%clk 0:03:03.7]} 9... Ne7 {[%clk 0:02:49.9]} 10.
Nc2 {[%clk 0:03:03.9]} 10... O-O {[%clk 0:02:49.8]} 11. Be3 {[%clk 0:03:03.7]}
11... f5 {[%clk 0:02:49.9]} 12. Ng5 {[%clk 0:03:00.1]} 12... Rf6 {[%clk
0:02:44.8]} 13. e5 {[%clk 0:02:57.1]} 13... Bxg2 {[%clk 0:02:43.3]} 14. exf6
{[%clk 0:02:56.9]} 14... Bxf1 {[%clk 0:02:28.9]} 15. fxg7 {[%clk 0:02:41.9]}
15... Bxd3 {[%clk 0:02:02]} 16. Qxd3 {[%clk 0:02:40.5]} 1-0

[Event "*** SCC Grand Prix: Titled Tuesday Blitz"]
[Site "Chess.com"]
[Date "2020.07.21"]
[Round "8"]
[White "dodorox"]
[Black "Alindsay211"]
[Result "1-0"]
[WhiteElo "2155"]
[BlackElo "2272"]
[TimeControl "180+1"]
[EndTime "11:31:38 PDT"]
[Termination "dodorox won by resignation"]

1. d4 {[%clk 0:03:00.9]} 1... e6 {[%clk 0:02:59.5]} 2. c4 {[%clk 0:03:00.6]}
2... d5 {[%clk 0:02:59.8]} 3. Nc3 {[%clk 0:02:59.3]} 3... Nf6 {[%clk 0:02:59.9]}
4. Bg5 {[%clk 0:02:58.9]} 4... Be7 {[%clk 0:02:58.1]} 5. Qc2 {[%clk 0:02:56.8]}
5... b6 {[%clk 0:02:57.1]} 6. cxd5 {[%clk 0:02:41]} 6... exd5 {[%clk 0:02:55.3]}
7. e3 {[%clk 0:02:38.7]} 7... O-O {[%clk 0:02:50.7]} 8. Nf3 {[%clk 0:02:37.9]}
8... Bb7 {[%clk 0:02:50.2]} 9. Bd3 {[%clk 0:02:36.8]} 9... Nbd7 {[%clk
0:02:47.8]} 10. O-O {[%clk 0:02:30.6]} 10... c5 {[%clk 0:02:47]} 11. Ne5 {[%clk
0:02:10.9]} 11... h6 {[%clk 0:02:39.9]} 12. Bf4 {[%clk 0:02:01.1]} 12... Rc8
{[%clk 0:02:33.4]} 13. Rac1 {[%clk 0:01:44.2]} 13... Nh5 {[%clk 0:02:15.9]} 14.
Nxd7 {[%clk 0:01:37.8]} 14... Qxd7 {[%clk 0:02:10.5]} 15. Bh7+ {[%clk
0:01:35.8]} 15... Kh8 {[%clk 0:02:08.9]} 16. Bf5 {[%clk 0:01:36.7]} 16... Qc7
{[%clk 0:02:02.6]} 17. Bxc7 {[%clk 0:01:36.1]} 1-0

[Event "*** SCC Grand Prix: Titled Tuesday Blitz"]
[Site "Chess.com"]
[Date "2020.07.21"]
[Round "8"]
[White "swimmerchess"]
[Black "bgfbfbgfbgfgf"]
[Result "1-0"]
[WhiteElo "2804"]
[BlackElo "2636"]
[TimeControl "180+1"]
[EndTime "11:31:47 PDT"]
[Termination "swimmerchess won by resignation"]

1. e4 {[%clk 0:03:00.9]} 1... c5 {[%clk 0:02:59.7]} 2. Nf3 {[%clk 0:03:00.1]}
2... d6 {[%clk 0:02:59.7]} 3. d4 {[%clk 0:03:00.1]} 3... cxd4 {[%clk 0:03:00.6]}
4. Nxd4 {[%clk 0:03:01]} 4... Nf6 {[%clk 0:03:01.1]} 5. Nc3 {[%clk 0:03:01.7]}
5... a6 {[%clk 0:03:01.5]} 6. Bg5 {[%clk 0:03:02.3]} 6... e6 {[%clk 0:03:01.6]}
7. f4 {[%clk 0:03:02.8]} 7... h6 {[%clk 0:03:01.9]} 8. Bh4 {[%clk 0:03:02.3]}
8... Qb6 {[%clk 0:03:01.9]} 9. Qd2 {[%clk 0:03:02.9]} 9... Qxb2 {[%clk 0:03:01]}
10. Rb1 {[%clk 0:03:03.2]} 10... Qa3 {[%clk 0:03:01.3]} 11. e5 {[%clk
0:03:04.1]} 11... dxe5 {[%clk 0:02:59.2]} 12. fxe5 {[%clk 0:03:05]} 12... Nfd7
{[%clk 0:02:59.8]} 13. Ne4 {[%clk 0:03:05.4]} 13... Qxa2 {[%clk 0:03:00.2]} 14.
Rd1 {[%clk 0:03:05.7]} 14... Qd5 {[%clk 0:03:00.7]} 15. Qe3 {[%clk 0:03:06.1]}
15... Qxe5 {[%clk 0:03:00.4]} 16. Be2 {[%clk 0:03:06.6]} 16... Bb4+ {[%clk
0:02:50]} 17. c3 {[%clk 0:03:03.8]} 17... Be7 {[%clk 0:02:44.6]} 18. Bg3 {[%clk
0:02:45.9]} 18... Qa5 {[%clk 0:02:39.7]} 19. Nd6+ {[%clk 0:02:39.8]} 19... Bxd6
{[%clk 0:02:38.7]} 20. Bxd6 {[%clk 0:02:40.7]} 20... Nf6 {[%clk 0:02:38.4]} 21.
O-O {[%clk 0:02:37.5]} 21... Bd7 {[%clk 0:02:15.8]} 22. Nf5 {[%clk 0:02:35.1]}
22... Rg8 {[%clk 0:02:03.4]} 23. Bb4 {[%clk 0:02:22.9]} 23... Qc7 {[%clk
0:01:45.7]} 24. Nd6+ {[%clk 0:02:14.2]} 24... Kd8 {[%clk 0:01:45.1]} 25. Nxf7+
{[%clk 0:02:13.4]} 25... Kc8 {[%clk 0:01:44.3]} 26. Nd6+ {[%clk 0:02:12.4]}
26... Kd8 {[%clk 0:01:44.8]} 27. Ba5 {[%clk 0:02:10.5]} 1-0

[Event "*** SCC Grand Prix: Titled Tuesday Blitz"]
[Site "Chess.com"]
[Date "2020.07.21"]
[Round "8"]
[White "diablanni"]
[Black "TioCridineno"]
[Result "1-0"]
[WhiteElo "2335"]
[BlackElo "2173"]
[TimeControl "180+1"]
[EndTime "11:32:10 PDT"]
[Termination "diablanni won by resignation"]

1. e4 {[%clk 0:03:00]} 1... c5 {[%clk 0:02:59.8]} 2. Nf3 {[%clk 0:02:58.9]} 2...
d6 {[%clk 0:03:00.1]} 3. Bb5+ {[%clk 0:02:57.9]} 3... Bd7 {[%clk 0:02:58.2]} 4.
Bxd7+ {[%clk 0:02:57.2]} 4... Qxd7 {[%clk 0:02:58.3]} 5. c4 {[%clk 0:02:56.6]}
5... Nc6 {[%clk 0:02:58]} 6. d4 {[%clk 0:02:54.4]} 6... cxd4 {[%clk 0:02:58]} 7.
Nxd4 {[%clk 0:02:53.7]} 7... g6 {[%clk 0:02:58.4]} 8. b3 {[%clk 0:02:52.9]} 8...
Bg7 {[%clk 0:02:58.7]} 9. Bb2 {[%clk 0:02:53]} 9... Nf6 {[%clk 0:02:58.9]} 10.
Nc3 {[%clk 0:02:52.5]} 10... O-O {[%clk 0:02:58.6]} 11. O-O {[%clk 0:02:51.2]}
11... Rfd8 {[%clk 0:02:43.3]} 12. Re1 {[%clk 0:02:41]} 12... Rac8 {[%clk
0:02:41.7]} 13. Nd5 {[%clk 0:02:36]} 13... Nb8 {[%clk 0:02:07.2]} 14. Qd2 {[%clk
0:02:07.8]} 14... e6 {[%clk 0:02:05]} 15. Nxf6+ {[%clk 0:02:03.3]} 15... Bxf6
{[%clk 0:02:05.1]} 16. Rad1 {[%clk 0:01:57.6]} 16... d5 {[%clk 0:02:04.9]} 17.
cxd5 {[%clk 0:01:55.9]} 17... exd5 {[%clk 0:02:04.9]} 18. e5 {[%clk 0:01:56.2]}
18... Bg7 {[%clk 0:02:04]} 19. e6 {[%clk 0:01:50.5]} 19... fxe6 {[%clk
0:02:03.7]} 20. Nxe6 {[%clk 0:01:49.9]} 20... Bxb2 {[%clk 0:02:03]} 21. Nxd8
{[%clk 0:01:45.3]} 21... Bc3 {[%clk 0:01:55.9]} 22. Qxd5+ {[%clk 0:01:41.8]}
22... Qxd5 {[%clk 0:01:55.6]} 23. Re8+ {[%clk 0:01:40.6]} 23... Kg7 {[%clk
0:01:55]} 24. Rxd5 {[%clk 0:01:40.6]} 24... Nc6 {[%clk 0:01:53.9]} 25. Ne6+
{[%clk 0:01:39.3]} 25... Kf7 {[%clk 0:01:53.6]} 26. Rxc8 {[%clk 0:01:39.4]}
26... Kxe6 {[%clk 0:01:54.1]} 27. Rd3 {[%clk 0:01:36.1]} 1-0

[Event "*** SCC Grand Prix: Titled Tuesday Blitz"]
[Site "Chess.com"]
[Date "2020.07.21"]
[Round "8"]
[White "monalize"]
[Black "romulocardoso"]
[Result "1-0"]
[WhiteElo "2271"]
[BlackElo "2130"]
[TimeControl "180+1"]
[EndTime "11:32:20 PDT"]
[Termination "monalize won by resignation"]

1. e4 {[%clk 0:03:00.9]} 1... c5 {[%clk 0:02:59.9]} 2. Nf3 {[%clk 0:02:58.8]}
2... d6 {[%clk 0:02:59.2]} 3. d4 {[%clk 0:02:57.9]} 3... cxd4 {[%clk 0:03:00.1]}
4. Qxd4 {[%clk 0:02:57.6]} 4... Nf6 {[%clk 0:03:00.7]} 5. h3 {[%clk 0:02:56.5]}
5... Nc6 {[%clk 0:03:01.2]} 6. Qe3 {[%clk 0:02:56.2]} 6... g6 {[%clk 0:02:59]}
7. Be2 {[%clk 0:02:54.8]} 7... Bg7 {[%clk 0:02:59.5]} 8. O-O {[%clk 0:02:54.7]}
8... O-O {[%clk 0:03:00]} 9. Rd1 {[%clk 0:02:54.5]} 9... Bd7 {[%clk 0:02:55.5]}
10. c4 {[%clk 0:02:53.5]} 10... Ne5 {[%clk 0:02:56.4]} 11. Nxe5 {[%clk
0:02:50.6]} 11... dxe5 {[%clk 0:02:57.3]} 12. b3 {[%clk 0:02:29.5]} 12... Qc7
{[%clk 0:02:56.8]} 13. Ba3 {[%clk 0:02:28.3]} 13... Bc6 {[%clk 0:02:55.9]} 14.
Nc3 {[%clk 0:02:26.5]} 14... Rfd8 {[%clk 0:02:55.1]} 15. Nd5 {[%clk 0:02:18]}
15... Bxd5 {[%clk 0:02:50.4]} 16. cxd5 {[%clk 0:02:11.1]} 16... Rac8 {[%clk
0:02:44.2]} 17. Rac1 {[%clk 0:01:59.3]} 17... Qd7 {[%clk 0:02:44.4]} 18. Bd3
{[%clk 0:01:50.6]} 18... h5 {[%clk 0:02:38.7]} 19. Qxa7 {[%clk 0:01:38.7]} 19...
Ra8 {[%clk 0:02:36.4]} 20. Qc5 {[%clk 0:01:38]} 20... b6 {[%clk 0:02:35.3]} 21.
Qxe7 {[%clk 0:01:34.5]} 21... Re8 {[%clk 0:02:26.7]} 22. Qxd7 {[%clk 0:01:22.2]}
22... Nxd7 {[%clk 0:02:27.6]} 23. Bd6 {[%clk 0:01:16.1]} 23... Rxa2 {[%clk
0:02:28.5]} 24. Bb5 {[%clk 0:01:15.3]} 24... Rd8 {[%clk 0:02:27.5]} 25. Bc7
{[%clk 0:01:13.4]} 25... Rda8 {[%clk 0:02:19.4]} 26. Bxd7 {[%clk 0:01:12.2]}
26... R8a3 {[%clk 0:02:20.3]} 27. Ba4 {[%clk 0:01:08.8]} 27... b5 {[%clk
0:02:19.1]} 28. Bxb5 {[%clk 0:01:07.8]} 28... Rxb3 {[%clk 0:02:18.5]} 29. Bc4
{[%clk 0:01:06.5]} 29... Rbb2 {[%clk 0:02:19.4]} 30. Bxa2 {[%clk 0:01:05.2]}
30... Rxa2 {[%clk 0:02:20.3]} 1-0

[Event "*** SCC Grand Prix: Titled Tuesday Blitz"]
[Site "Chess.com"]
[Date "2020.07.21"]
[Round "8"]
[White "KaterynaLagno"]
[Black "Ermito2020"]
[Result "0-1"]
[WhiteElo "2716"]
[BlackElo "2604"]
[TimeControl "180+1"]
[EndTime "11:32:45 PDT"]
[Termination "Ermito2020 won by resignation"]

1. e4 {[%clk 0:03:00.9]} 1... e5 {[%clk 0:02:58.9]} 2. Nf3 {[%clk 0:03:00.4]}
2... Nc6 {[%clk 0:02:59.3]} 3. Bb5 {[%clk 0:03:00.9]} 3... a6 {[%clk 0:02:58.9]}
4. Ba4 {[%clk 0:03:01.5]} 4... Nf6 {[%clk 0:02:59.2]} 5. O-O {[%clk 0:03:02.1]}
5... b5 {[%clk 0:02:59.6]} 6. Bb3 {[%clk 0:03:01.9]} 6... Bc5 {[%clk 0:03:00.5]}
7. a4 {[%clk 0:03:00.6]} 7... Rb8 {[%clk 0:02:59.9]} 8. axb5 {[%clk 0:03:00.7]}
8... axb5 {[%clk 0:02:59.8]} 9. Nxe5 {[%clk 0:03:01.3]} 9... Nxe5 {[%clk
0:02:55.3]} 10. d4 {[%clk 0:03:01.6]} 10... Bxd4 {[%clk 0:02:54.5]} 11. Qxd4
{[%clk 0:03:02.5]} 11... d6 {[%clk 0:02:54.6]} 12. f4 {[%clk 0:03:03.1]} 12...
c5 {[%clk 0:02:54.4]} 13. Qc3 {[%clk 0:02:48.6]} 13... Neg4 {[%clk 0:02:23]} 14.
e5 {[%clk 0:02:43.4]} 14... Ne4 {[%clk 0:02:07.1]} 15. Qf3 {[%clk 0:02:11.1]}
15... c4 {[%clk 0:01:43.6]} 16. Qxe4 {[%clk 0:01:59.9]} 16... Qb6+ {[%clk
0:01:38.7]} 17. Kh1 {[%clk 0:01:54.7]} 17... Nf2+ {[%clk 0:01:31.2]} 18. Rxf2
{[%clk 0:01:53.1]} 18... Qxf2 {[%clk 0:01:32.1]} 19. exd6+ {[%clk 0:01:48.1]}
19... Be6 {[%clk 0:01:31.9]} 20. d7+ {[%clk 0:01:39.4]} 20... Ke7 {[%clk
0:01:20.6]} 21. Be3 {[%clk 0:01:30]} 21... Qe1+ {[%clk 0:01:18.3]} 22. Bg1
{[%clk 0:01:23.9]} 22... Qxe4 {[%clk 0:01:17.7]} 0-1